fUST/lending_fUST_20241116
["ID","MTS","AMOUNT","RATE_DAILY","PERIOD"]
[342341798,1731757846895,-500.0,0.00013698,2]
[342341810,1731757847028,-500.0,0.00013698,2]
[342341811,1731757847038,-524.00937391,0.00013698,2]
[342341812,1731757847047,-500.0,0.00013698,2]
[342341813,1731757847057,-500.0,0.00013698,2]
[342341814,1731757847066,-500.0,0.00013698,2]
[342341815,1731757847078,-500.0,0.00013698,2]
[342341816,1731757847087,-500.0,0.00013698,2]
[342341817,1731757847097,-500.0,0.00013698,2]
[342341818,1731757847106,-500.0,0.00013698,2]
[342341819,1731757847115,-606.13,0.00013698,2]
[342341820,1731757847125,-193.29723242,0.00013698,2]
[342341821,1731757847141,-511.57478454,0.00013698,2]
[342341822,1731757847150,-505.98709462,0.00013698,2]
[342341823,1731757847159,-500.0,0.00013698,2]
[342341824,1731757847169,-500.0,0.00013698,2]
[342341825,1731757847180,-500.0,0.00013698,2]
[342341826,1731757847190,-506.21576309,0.00013698,2]
[342341827,1731757847199,-500.0,0.00013698,2]
[342341828,1731757847208,-502.92471835,0.00013698,2]
[342341829,1731757847219,-500.0,0.00013698,2]
[342341830,1731757847229,-500.0,0.00013698,2]
[342341831,1731757847239,-507.53078266,0.00013698,2]
[342341832,1731757847248,-503.93876817,0.00013698,2]
[342341833,1731757847257,-502.52744041,0.00013698,2]
[342341834,1731757847267,-500.0,0.00013698,2]
[342341835,1731757847276,-500.0,0.00013698,2]
[342341836,1731757847285,-500.0,0.00013698,2]
[342341837,1731757847295,-616.96095229,0.00013698,2]
[342341838,1731757847305,-500.0,0.00013698,2]
[342341839,1731757847315,-504.33751304,0.00013698,2]
[342341840,1731757847324,-526.05777862,0.00013698,2]
[342341841,1731757847334,-500.0,0.00013698,2]
[342341842,1731757847343,-258.97290928,0.00013698,2]
[342341843,1731757847353,-500.0,0.00013698,2]
[342341844,1731757847362,-500.0,0.00013698,2]
[342341845,1731757847372,-500.0,0.00013698,2]
[342341846,1731757847383,-503.09844197,0.00013698,2]
[342341847,1731757847392,-195.6869484,0.00013698,2]
[342341848,1731757847402,-503.67207861,0.00013698,2]
[342341849,1731757847411,-501.16285263,0.00013698,2]
[342341850,1731757847421,-500.0,0.00013698,2]
[342341851,1731757847431,-566.90148136,0.00013698,2]
[342341852,1731757847441,-177.90399328,0.00013698,2]
[342341853,1731757847501,-322.09600672,0.00013698,2]
[342341854,1731757847510,-500.0,0.00013698,2]
[342341855,1731757847521,-500.0,0.00013698,2]
[342341856,1731757847531,-500.0,0.00013698,2]
[342341857,1731757847541,-224.16150991,0.00013698,2]
[342341858,1731757847550,-553.12177402,0.00013698,2]
[342341859,1731757914102,151.638,0.00011,2]
[342341918,1731759034438,-261.22769026,0.00012197,2]
[342341920,1731759034449,-518.35258214,0.00012512,2]
[342341922,1731759034461,-339.62244715,0.00012512,2]
[342341980,1731759037768,-1994.91753799,0.00012512,2]
[342341998,1731759037927,-5705.55781342,0.00012512,2]
[342342000,1731759037936,-197.21499596,0.00013396,2]
[342342002,1731759037946,-300.0,0.00013497,2]
[342342004,1731759037955,-300.0,0.00013497,2]
[342342006,1731759037964,-1115.73635271,0.00013498,2]
[342342008,1731759037973,-170.28920852,0.00013498,2]
[342342010,1731759037983,-197.21499596,0.00013498,2]
[342342012,1731759037992,-1000.90501117,0.00013597,2]
[342342014,1731759038001,-599.99244766,0.00013598,2]
[342342016,1731759038010,-368.11569066,0.00013598,2]
[342342210,1731759039878,-4937.89143426,0.00013598,2]
[342342503,1731759042845,-1506.47858802,0.00013598,2]
[342342515,1731759042951,-4557.6,0.00013598,2]
[342343977,1731759651498,856.33,0.00026,60]
[342344125,1731760234737,-300.0,0.00011894,2]
[342344126,1731760234747,-300.0,0.00011894,2]
[342344127,1731760234756,-3050.1986276,0.00011895,2]
[342344128,1731760234767,-21849.8013724,0.00011895,2]
[342344129,1731760234777,-3113.1756902,0.00012323,2]
[342344130,1731760234787,-270.17638347,0.0001247,2]
[342344131,1731760234797,-2420.6388807,0.00012524,2]
[342344132,1731760234806,-420.0,0.00013058,2]
[342344133,1731760234815,-420.0,0.00013083,2]
[342344134,1731760234824,-168.91561297,0.00013291,2]
[342344135,1731760234834,-10496.0243581,0.00013361,2]
[342344136,1731760234843,-620.1449962,0.00013361,2]
[342344137,1731760234852,-7065.0335872,0.00013596,2]
[342344138,1731760234862,-299.663373,0.00013598,2]
[342344139,1731760234871,-299.663373,0.00013598,2]
[342344141,1731760234880,-151.0,0.00013598,2]
[342344143,1731760234889,-151.0,0.00013598,2]
[342344145,1731760234905,-151.0,0.00013598,2]
[342344147,1731760234914,-151.0,0.00013598,2]
[342344149,1731760234923,-153.934444,0.00013598,2]
[342344151,1731760234934,-151.0,0.00013598,2]
[342344153,1731760234945,-151.0,0.00013598,2]
[342344155,1731760234954,-151.0,0.00013598,2]
[342344157,1731760234963,-151.0,0.00013598,2]
[342344159,1731760234973,-297.124788,0.00013598,2]
[342344161,1731760234984,-151.0,0.00013598,2]
[342344163,1731760234996,-188.290199,0.00013598,2]
[342344165,1731760235009,-151.0,0.00013598,2]
[342344167,1731760235019,-65300.54932099,0.00013598,2]
[342344169,1731760235028,-63319.44952879,0.00013598,2]
[342344171,1731760235038,-1000.0,0.00013598,2]
[342344174,1731760235047,-2558.73341799,0.00013599,2]
[342344175,1731760235056,-680.41119524,0.00013697,2]
[342344177,1731760235065,-150.256,0.00013697,2]
[342344180,1731760235075,-500.0,0.00013698,2]
[342344182,1731760235086,-544.47159067,0.00013698,2]
[342344184,1731760235095,-304.95166795,0.00013698,2]
[342344186,1731760235105,-500.0,0.00013698,2]
[342344188,1731760235114,-513.86812561,0.00013698,2]
[342344189,1731760235124,-500.0,0.00013698,2]
[342344190,1731760235134,-500.0,0.00013698,2]
[342344191,1731760235144,-504.42817943,0.00013698,2]
[342344192,1731760235156,-522.32367393,0.00013698,2]
[342344193,1731760235166,-500.0,0.00013698,2]
[342344194,1731760235175,-400.1399312,0.00013698,2]
[342344195,1731760235184,-610.66395986,0.00013698,2]
[342344196,1731760235194,-500.0,0.00013698,2]
[342344197,1731760235203,-503.26219396,0.00013698,2]
[342344198,1731760235212,-500.0,0.00013698,2]
[342344199,1731760235221,-510.34073795,0.00013698,2]
[342344200,1731760235231,-503.18260888,0.00013698,2]
[342344201,1731760235240,-500.0,0.00013698,2]
[342344202,1731760235249,-501.45170459,0.00013698,2]
[342344203,1731760235258,-500.81426844,0.00013698,2]
[342344204,1731760235268,-500.0,0.00013698,2]
[342344205,1731760235277,-500.0,0.00013698,2]
[342344206,1731760235286,-500.0,0.00013698,2]
[342344207,1731760235296,-500.0,0.00013698,2]
[342344208,1731760235306,-521.29059309,0.00013698,2]
[342344209,1731760235315,-503.00209994,0.00013698,2]
[342344210,1731760235324,-541.80817312,0.00013698,2]
[342344211,1731760235334,-500.0,0.00013698,2]
[342344212,1731760235343,-503.03911293,0.00013698,2]
[342344213,1731760235352,-500.0,0.00013698,2]
[342344214,1731760235362,-500.0,0.00013698,2]
[342344215,1731760235371,-500.0,0.00013698,2]
[342344216,1731760235381,-500.0,0.00013698,2]
[342344217,1731760235391,-151.0,0.00013698,2]
[342344218,1731760235400,-151.0,0.00013698,2]
[342344219,1731760235411,-500.0,0.00013698,2]
[342344220,1731760235420,-500.0,0.00013698,2]
[342344222,1731760235429,-502.98076554,0.00013698,2]
[342344224,1731760235439,-505.50518102,0.00013698,2]
[342344226,1731760235448,-502.65249403,0.00013698,2]
[342344228,1731760235457,-500.0,0.00013698,2]
[342344230,1731760235466,-453.86201782,0.00013698,2]
[342344232,1731760235476,-501.3358483,0.00013698,2]
[342344234,1731760235485,-500.0,0.00013698,2]
[342344235,1731760235495,-500.0,0.00013698,2]
[342344237,1731760235505,-500.0,0.00013698,2]
[342344239,1731760235515,-568.60093428,0.00013698,2]
[342344240,1731760235524,-500.0,0.00013698,2]
[342344241,1731760235534,-283.87815013,0.00013698,2]
[342344242,1731760235543,-500.0,0.00013698,2]
[342344243,1731760235552,-500.0,0.00013698,2]
[342344244,1731760235562,-500.0,0.00013698,2]
[342344245,1731760235571,-500.0,0.00013698,2]
[342344246,1731760235580,-500.0,0.00013698,2]
[342344247,1731760235591,-500.0,0.00013698,2]
[342344248,1731760235601,-500.0,0.00013698,2]
[342344249,1731760235612,-500.0,0.00013698,2]
[342344250,1731760235622,-500.0,0.00013698,2]
[342344251,1731760235633,-502.50784554,0.00013698,2]
[342344252,1731760235649,-500.0,0.00013698,2]
[342344253,1731760235664,-500.0,0.00013698,2]
[342344254,1731760235673,-500.81494061,0.00013698,2]
[342344255,1731760235683,-503.23258987,0.00013698,2]
[342344256,1731760235693,-500.0,0.00013698,2]
[342344257,1731760235703,-500.0,0.00013698,2]
[342344258,1731760235712,-500.0,0.00013698,2]
[342344259,1731760235721,-500.0,0.00013698,2]
[342344260,1731760235731,-515.1130891,0.00013698,2]
[342344261,1731760235740,-508.33107387,0.00013698,2]
[342344262,1731760235750,-501.59446248,0.00013698,2]
[342344263,1731760235761,-500.0,0.00013698,2]
[342344264,1731760235771,-503.49977975,0.00013698,2]
[342344265,1731760235780,-633.34705998,0.00013698,2]
[342344266,1731760235790,-500.0,0.00013698,2]
[342344267,1731760235800,-513.2337159,0.00013698,2]
[342344268,1731760235809,-500.0,0.00013698,2]
[342344269,1731760235818,-166.84010907,0.00013698,2]
[342344270,1731760235828,-500.0,0.00013698,2]
[342344271,1731760235837,-500.0,0.00013698,2]
[342344272,1731760235847,-500.0,0.00013698,2]
[342344273,1731760235857,-500.0,0.00013698,2]
[342344274,1731760235867,-495.62458627,0.00013698,2]
[342344275,1731760235876,-500.0,0.00013698,2]
[342344276,1731760235885,-500.0,0.00013698,2]
[342344277,1731760235897,-504.17514008,0.00013698,2]
[342344278,1731760235912,-500.0,0.00013698,2]
[342344279,1731760235923,-501.6112477,0.00013698,2]
[342344280,1731760235932,-508.37036897,0.00013698,2]
[342344281,1731760235943,-500.0,0.00013698,2]
[342344282,1731760235953,-502.05555333,0.00013698,2]
[342344283,1731760235962,-500.0,0.00013698,2]
[342344284,1731760235971,-508.55716606,0.00013698,2]
[342344285,1731760235982,-500.0,0.00013698,2]
[342344286,1731760235994,-500.0,0.00013698,2]
[342344287,1731760236004,-500.0,0.00013698,2]
[342344288,1731760236014,-500.0,0.00013698,2]
[342344289,1731760236023,-500.0,0.00013698,2]
[342344290,1731760236033,-541.68952559,0.00013698,2]
[342344291,1731760236043,-500.0,0.00013698,2]
[342344292,1731760236052,-502.05778437,0.00013698,2]
[342344293,1731760236062,-501.356347,0.00013698,2]
[342344294,1731760236071,-500.0,0.00013698,2]
[342344295,1731760236081,-530.36425207,0.00013698,2]
[342344296,1731760236090,-500.0,0.00013698,2]
[342344297,1731760236100,-500.0,0.00013698,2]
[342344298,1731760236109,-506.26622956,0.00013698,2]
[342344299,1731760236119,-500.0,0.00013698,2]
[342344300,1731760236128,-500.0,0.00013698,2]
[342344301,1731760236138,-502.8260856,0.00013698,2]
[342344302,1731760236148,-155.123807,0.00013698,2]
[342344303,1731760236161,-505.19910966,0.00013698,2]
[342344304,1731760236171,-378.52,0.00013698,2]
[342344305,1731760236181,-169.30403693,0.00013698,2]
[342344306,1731760236190,-500.0,0.00013698,2]
[342344307,1731760236200,-291.05718892,0.00013698,2]
[342344308,1731760236209,-166.90578417,0.00013698,2]
[342344309,1731760236219,-500.0,0.00013698,2]
[342344310,1731760236229,-320.76463895,0.00013698,2]
[342344311,1731760236239,-500.0,0.00013698,2]
[342344312,1731760236249,-519.22387543,0.00013698,2]
[342344313,1731760236259,-500.0,0.00013698,2]
[342344314,1731760236268,-500.0,0.00013698,2]
[342344315,1731760236278,-500.0,0.00013698,2]
[342344316,1731760236288,-500.0,0.00013698,2]
[342344317,1731760236297,-500.0,0.00013698,2]
[342344318,1731760236307,-503.01942539,0.00013698,2]
[342344319,1731760236317,-298.22795768,0.00013698,2]
[342344320,1731760236327,-500.0,0.00013698,2]
[342344321,1731760236337,-500.0,0.00013698,2]
[342344322,1731760236346,-500.0,0.00013698,2]
[342344323,1731760236355,-500.0,0.00013698,2]
[342344324,1731760236364,-936.84,0.00013698,2]
[342344325,1731760236374,-500.0,0.00013698,2]
[342344326,1731760236528,-500.0,0.00013698,2]
[342344327,1731760236538,-299.663373,0.00013698,2]
[342344328,1731760236548,-299.663373,0.00013698,2]
[342344329,1731760236558,-299.663373,0.00013698,2]
[342344330,1731760236567,-299.663373,0.00013698,2]
[342344331,1731760236576,-299.663373,0.00013698,2]
[342344332,1731760236586,-301.20646688,0.00013698,2]
[342344333,1731760236595,-299.663373,0.00013698,2]
[342344334,1731760236605,-299.663373,0.00013698,2]
[342344335,1731760236614,-299.663373,0.00013698,2]
[342344336,1731760236623,-299.663373,0.00013698,2]
[342344337,1731760236632,-299.663373,0.00013698,2]
[342344338,1731760236641,-299.663373,0.00013698,2]
[342344339,1731760236650,-151.0,0.00013698,2]
[342344340,1731760236664,-299.663373,0.00013698,2]
[342344341,1731760236673,-299.663373,0.00013698,2]
[342344342,1731760236682,-151.0,0.00013698,2]
[342344343,1731760236692,-504.59,0.00013698,2]
[342344344,1731760236701,-221.149916,0.00013698,2]
[342344345,1731760236710,-299.663373,0.00013698,2]
[342344346,1731760236720,-299.663373,0.00013698,2]
[342344347,1731760236729,-299.663373,0.00013698,2]
[342344348,1731760236740,-299.663373,0.00013698,2]
[342344349,1731760236749,-299.663381,0.00013698,2]
[342344350,1731760236758,-509.55235097,0.00013698,2]
[342344351,1731760236767,-543.58534309,0.00013698,2]
[342344352,1731760236777,-500.0,0.00013698,2]
[342344353,1731760236786,-151.0,0.00013698,2]
[342344354,1731760236796,-500.0,0.00013698,2]
[342344355,1731760236805,-504.67947968,0.00013698,2]
[342344356,1731760236814,-371.56756038,0.00013698,2]
[342344357,1731760236823,-500.0,0.00013698,2]
[342344358,1731760236833,-500.0,0.00013698,2]
[342344359,1731760236842,-500.0,0.00013698,2]
[342344360,1731760236851,-500.0,0.00013698,2]
[342344361,1731760236861,-580.88,0.00013698,2]
[342344362,1731760236871,-500.0,0.00013698,2]
[342344363,1731760236881,-500.0,0.00013698,2]
[342344364,1731760236892,-579.23709984,0.00013698,2]
[342344365,1731760236907,-500.0,0.00013698,2]
[342344366,1731760236922,-502.25407752,0.00013698,2]
[342344367,1731760236932,-500.0,0.00013698,2]
[342344368,1731760236946,-500.0,0.00013698,2]
[342344369,1731760236956,-500.0,0.00013698,2]
[342344370,1731760236967,-2067.49,0.00013698,2]
[342344371,1731760236977,-308.9407756,0.00013698,2]
[342344372,1731760236990,-500.0,0.00013698,2]
[342344373,1731760237000,-500.0,0.00013698,2]
[342344374,1731760237010,-151.0,0.00013698,2]
[342344375,1731760237019,-151.0,0.00013698,2]
[342344376,1731760237028,-154.519138,0.00013698,2]
[342344377,1731760237037,-500.0,0.00013698,2]
[342344378,1731760237047,-500.0,0.00013698,2]
[342344379,1731760237056,-507.08474912,0.00013698,2]
[342344380,1731760237065,-500.0,0.00013698,2]
[342344381,1731760237074,-500.0,0.00013698,2]
[342344382,1731760237083,-500.0,0.00013698,2]
[342344383,1731760237092,-336.27571041,0.00013698,2]
[342344384,1731760237101,-502.95133685,0.00013698,2]
[342344385,1731760237110,-726.12,0.00013698,2]
[342344386,1731760237119,-500.0,0.00013698,2]
[342344387,1731760237129,-500.0,0.00013698,2]
[342344388,1731760237139,-1949.86,0.00013698,2]
[342344389,1731760237148,-500.0,0.00013698,2]
[342344390,1731760237161,-511.65054604,0.00013698,2]
[342344391,1731760237171,-500.0,0.00013698,2]
[342344392,1731760237180,-500.0,0.00013698,2]
[342344393,1731760237190,-573.346589,0.00013698,2]
[342344394,1731760237199,-500.0,0.00013698,2]
[342344395,1731760237208,-530.86,0.00013698,2]
[342344396,1731760237217,-500.0,0.00013698,2]
[342344397,1731760237227,-500.0,0.00013698,2]
[342344398,1731760237236,-500.0,0.00013698,2]
[342344399,1731760237245,-500.0,0.00013698,2]
[342344400,1731760237254,-500.0,0.00013698,2]
[342344401,1731760237264,-500.0,0.00013698,2]
[342344402,1731760237273,-2336.0,0.00013698,2]
[342344403,1731760237282,-874.94,0.00013698,2]
[342344404,1731760237292,-500.0,0.00013698,2]
[342344405,1731760237301,-638.57496346,0.00013698,2]
[342344406,1731760237310,-500.0,0.00013698,2]
[342344407,1731760237320,-500.0,0.00013698,2]
[342344408,1731760237329,-500.0,0.00013698,2]
[342344409,1731760237339,-500.0,0.00013698,2]
[342344410,1731760237349,-500.0,0.00013698,2]
[342344411,1731760237359,-500.0,0.00013698,2]
[342344412,1731760237368,-500.0,0.00013698,2]
[342344414,1731760237377,-500.0,0.00013698,2]
[342344415,1731760237386,-500.0,0.00013698,2]
[342344416,1731760237395,-310.79175987,0.00013698,2]
[342344417,1731760237406,-1779.21,0.00013698,2]
[342344418,1731760237415,-1058.33,0.00013698,2]
[342344419,1731760237424,-500.0,0.00013698,2]
[342344421,1731760237435,-505.72012664,0.00013698,2]
[342344422,1731760237444,-226.94508697,0.00013698,2]
[342344423,1731760237453,-500.0,0.00013698,2]
[342344424,1731760237462,-2089.38,0.00013698,2]
[342344425,1731760237472,-824.59,0.00013698,2]
[342344426,1731760237481,-500.0,0.00013698,2]
[342344428,1731760237491,-500.0,0.00013698,2]
[342344429,1731760237501,-500.0,0.00013698,2]
[342344430,1731760237511,-749.67,0.00013698,2]
[342344431,1731760237520,-554.41167326,0.00013698,2]
[342344432,1731760237530,-500.0,0.00013698,2]
[342344433,1731760237538,-1705.72,0.00013698,2]
[342344434,1731760237547,-500.0,0.00013698,2]
[342344436,1731760237556,-500.0,0.00013698,2]
[342344437,1731760237566,-500.0,0.00013698,2]
[342344439,1731760237575,-500.0,0.00013698,2]
[342344440,1731760237584,-500.0,0.00013698,2]
[342344441,1731760237594,-500.0,0.00013698,2]
[342344442,1731760237604,-500.0,0.00013698,2]
[342344443,1731760237612,-500.0,0.00013698,2]
[342344444,1731760237622,-500.0,0.00013698,2]
[342344445,1731760237630,-500.0,0.00013698,2]
[342344446,1731760237640,-500.0,0.00013698,2]
[342344447,1731760237649,-1612.7,0.00013698,2]
[342344449,1731760237661,-503.52951432,0.00013698,2]
[342344451,1731760237670,-504.88976585,0.00013698,2]
[342344453,1731760237679,-517.32901684,0.00013698,2]
[342344455,1731760237689,-636.68,0.00013698,2]
[342344457,1731760237698,-553.967654,0.00013698,2]
[342344458,1731760237706,-500.0,0.00013698,2]
[342344460,1731760237715,-500.0,0.00013698,2]
[342344462,1731760237725,-500.0,0.00013698,2]
[342344464,1731760237733,-502.6373402,0.00013698,2]
[342344466,1731760237742,-500.0,0.00013698,2]
[342344469,1731760237753,-500.0,0.00013698,2]
[342344471,1731760237762,-500.0,0.00013698,2]
[342344473,1731760237771,-500.0,0.00013698,2]
[342344475,1731760237782,-500.0,0.00013698,2]
[342344477,1731760237791,-500.0,0.00013698,2]
[342344479,1731760237801,-500.0,0.00013698,2]
[342344481,1731760237811,-500.0,0.00013698,2]
[342344483,1731760237821,-67.74592517,0.00013698,2]
[342344486,1731760237844,-432.25407483,0.00013698,2]
[342344488,1731760237854,-152.24592517,0.00013698,2]
[342344490,1731760237866,-347.75407483,0.00013698,2]
[342344492,1731760237876,-500.0,0.00013698,2]
[342344494,1731760237886,-190.58851336,0.00013698,2]
[342344496,1731760237900,-500.0,0.00013698,2]
[342344498,1731760237913,-1210.27,0.00013698,2]
[342344500,1731760237922,-508.94264472,0.00013698,2]
[342344502,1731760237932,-500.0,0.00013698,2]
[342344504,1731760237941,-502.54424039,0.00013698,2]
[342344506,1731760237952,-502.57278209,0.00013698,2]
[342344508,1731760237962,-548.08,0.00013698,2]
[342344510,1731760237971,-500.0,0.00013698,2]
[342344513,1731760237983,-1151.45,0.00013698,2]
[342344514,1731760237992,-500.0,0.00013698,2]
[342344516,1731760238002,-314.05246493,0.00013698,2]
[342344519,1731760238011,-500.0,0.00013698,2]
[342344521,1731760238020,-500.0,0.00013698,2]
[342344522,1731760238030,-500.0,0.00013698,2]
[342344525,1731760238039,-165.54733712,0.00013698,2]
[342344527,1731760238048,-500.0,0.00013698,2]
[342344529,1731760238058,-500.0,0.00013698,2]
[342344530,1731760238067,-500.0,0.00013698,2]
[342344532,1731760238076,-500.0,0.00013698,2]
[342344534,1731760238086,-500.0,0.00013698,2]
[342344536,1731760238095,-500.0,0.00013698,2]
[342344539,1731760238104,-500.0,0.00013698,2]
[342344541,1731760238117,-500.0,0.00013698,2]
[342344543,1731760238126,-500.0,0.00013698,2]
[342344545,1731760238135,-500.0,0.00013698,2]
[342344547,1731760238144,-500.0,0.00013698,2]
[342344549,1731760238155,-500.0,0.00013698,2]
[342344551,1731760238165,-500.0,0.00013698,2]
[342344553,1731760238174,-500.0,0.00013698,2]
[342344555,1731760238184,-500.0,0.00013698,2]
[342344557,1731760238193,-500.0,0.00013698,2]
[342344559,1731760238202,-500.0,0.00013698,2]
[342344561,1731760238212,-500.0,0.00013698,2]
[342344563,1731760238223,-500.0,0.00013698,2]
[342344565,1731760238232,-242.96,0.00013698,2]
[342344566,1731760238241,-503.07804081,0.00013698,2]
[342344568,1731760238251,-500.0,0.00013698,2]
[342344571,1731760238262,-500.0,0.00013698,2]
[342344573,1731760238271,-503.60789702,0.00013698,2]
[342344575,1731760238281,-500.0,0.00013698,2]
[342344577,1731760238290,-500.0,0.00013698,2]
[342344580,1731760238299,-500.0,0.00013698,2]
[342344583,1731760238308,-500.0,0.00013698,2]
[342344586,1731760238317,-500.0,0.00013698,2]
[342344589,1731760238326,-500.0,0.00013698,2]
[342344591,1731760238336,-2129.65,0.00013698,2]
[342344593,1731760238345,-151.0,0.00013698,2]
[342344595,1731760238355,-500.0,0.00013698,2]
[342344597,1731760238365,-151.0,0.00013698,2]
[342344599,1731760238374,-151.0,0.00013698,2]
[342344601,1731760238384,-151.0,0.00013698,2]
[342344603,1731760238394,-220.936792,0.00013698,2]
[342344605,1731760238405,-500.0,0.00013698,2]
[342344607,1731760238414,-227.8854959,0.00013698,2]
[342344609,1731760238423,-500.0,0.00013698,2]
[342344611,1731760238432,-239.76590603,0.00013698,2]
[342344613,1731760238441,-500.0,0.00013698,2]
[342344615,1731760238450,-500.0,0.00013698,2]
[342344617,1731760238459,-500.81239791,0.00013698,2]
[342344619,1731760238469,-500.0,0.00013698,2]
[342344621,1731760238479,-291.46786024,0.00013698,2]
[342344623,1731760238488,-500.0,0.00013698,2]
[342344625,1731760238498,-500.0,0.00013698,2]
[342344627,1731760238507,-500.0,0.00013698,2]
[342344629,1731760238516,-1251.18254563,0.00013698,2]
[342344656,1731760238761,-2417.27745437,0.00013698,2]
[342344658,1731760238771,-500.0,0.00013698,2]
[342344660,1731760238780,-16266.95,0.00013698,2]
[342344662,1731760238790,-605.16076335,0.00013698,2]
[342344664,1731760238799,-151.0,0.00013698,2]
[342344666,1731760238808,-778.91,0.00013698,2]
[342344668,1731760238818,-500.0,0.00013698,2]
[342344670,1731760238827,-500.0,0.00013698,2]
[342344672,1731760238837,-151.0,0.00013698,2]
[342344674,1731760238846,-500.0,0.00013698,2]
[342344676,1731760238856,-501.33239763,0.00013698,2]
[342344678,1731760238867,-500.0,0.00013698,2]
[342344680,1731760238878,-366.56070747,0.00013698,2]
[342344682,1731760238888,-500.0,0.00013698,2]
[342344684,1731760238897,-151.0,0.00013698,2]
[342344686,1731760238911,-151.0,0.00013698,2]
[342344688,1731760238921,-224.371053,0.00013698,2]
[342344690,1731760238932,-500.0,0.00013698,2]
[342344692,1731760238941,-500.0,0.00013698,2]
[342344694,1731760238951,-500.0,0.00013698,2]
[342344696,1731760238961,-1589.69,0.00013698,2]
[342344698,1731760238971,-1276.12,0.00013698,2]
[342344700,1731760238982,-512.51606304,0.00013698,2]
[342344702,1731760238992,-591.68,0.00013698,2]
[342344704,1731760239002,-500.0,0.00013698,2]
[342344706,1731760239012,-500.0,0.00013698,2]
[342344708,1731760239021,-500.0,0.00013698,2]
[342344710,1731760239030,-535.26710616,0.00013698,2]
[342344713,1731760239043,-11.00289384,0.00013698,2]
[342344715,1731760239052,-515.11547642,0.00013698,2]
[342344717,1731760239061,-378.97668977,0.00013698,2]
[342344719,1731760239073,-121.02331023,0.00013698,2]
[342344721,1731760239082,-779.84,0.00013698,2]
[342344723,1731760239091,-500.0,0.00013698,2]
[342344725,1731760239101,-151.0,0.00013698,2]
[342344727,1731760239110,-151.0,0.00013698,2]
[342344729,1731760239119,-151.0,0.00013698,2]
[342344731,1731760239128,-151.0,0.00013698,2]
[342344733,1731760239138,-151.0,0.00013698,2]
[342344735,1731760239147,-151.0,0.00013698,2]
[342344737,1731760239158,-500.0,0.00013698,2]
[342344739,1731760239167,-151.0,0.00013698,2]
[342344741,1731760239177,-151.0,0.00013698,2]
[342344743,1731760239187,-151.0,0.00013698,2]
[342344745,1731760239201,-500.0,0.00013698,2]
[342344747,1731760239210,-500.0,0.00013698,2]
[342344749,1731760239219,-500.0,0.00013698,2]
[342344751,1731760239227,-500.0,0.00013698,2]
[342344753,1731760239237,-500.0,0.00013698,2]
[342344755,1731760239246,-500.0,0.00013698,2]
[342344757,1731760239255,-500.0,0.00013698,2]
[342344759,1731760239265,-500.0,0.00013698,2]
[342344761,1731760239274,-500.0,0.00013698,2]
[342344763,1731760239283,-357.83767413,0.00013698,2]
[342344765,1731760239292,-500.0,0.00013698,2]
[342344767,1731760239301,-500.0,0.00013698,2]
[342344769,1731760239310,-539.75380396,0.00013698,2]
[342344771,1731760239319,-546.20792493,0.00013698,2]
[342344773,1731760239328,-500.0,0.00013698,2]